Cogmind - Beta 15 @@@ ROGUE MODE // 2025.09.18 @ 21:48:11 Player: c4-BRK Result: Self-destructed Performance ------------- Evolutions (2) 1000 Regions Visited (5) 1000 Robots Destroyed (28) 140 Value Destroyed (737) 737 Prototype IDs (1) 20 Alien Tech Used (0) 0 Bonus (131) 131 TOTAL SCORE: 3028 Bonus ------- High Alert Combat Kills 26 Follower Combat Kills 105 Cogmind --------- Core Integrity 412/550 Matter 267/300 Energy 160/160 System Corruption 2% Temperature Cool (0) Movement Rolling (110) Ox2 Location -8/Materials Parts ------- > --- POWER (1) -------- Light Nuclear Core > --- PROPULSION (3) --- Wheel > --- UTILITY (5) ------ Scrap Suit Medium Storage Unit Advanced ECM Suite > --- WEAPON (2) ------- (None) > --- INVENTORY (10) --- Nuclear Core Fission Core Light Fission Core Improved Heat Sink Faulty Experimental Sensor Array Improved Terrain Scanner Advanced ECM Suite Improved Datajack Peak State ------------ > --- POWER ------------ Light Nuclear Core > --- PROPULSION ------- Wheel Wheel Wheel > --- UTILITY ---------- Scrap Suit Medium Storage Unit Advanced ECM Suite Improved Light Armor Plating > --- WEAPON ----------- Gauss Rifle Mini Grenade Launcher > --- INVENTORY -------- Light Ion Engine Nuclear Core Fission Core Light Fission Core Experimental Sensor Array Improved Terrain Scanner Advanced ECM Suite Hardened Light Armor Plating Rocket Launcher Improved Datajack [Rating: 31] Favorites ----------- Power Light Nuclear Core Engine Light Ion Engine Power Core Light Nuclear Core Propulsion Wheel Wheel Wheel Utility Medium Storage Unit Device Scrap Suit Storage Medium Storage Unit Processor Visual Processing Unit Protection Hardened Light Armor Plating Weapon Light Cannon Energy Gun Medium Laser Ballistic Gun Assault Rifle Ballistic Cannon Light Cannon Launcher Mini Grenade Launcher Special Weapon Mining Laser Build | -11 -10 -10 -10 -9 -8 ------- Run | Yrd Mat Min Exi Min Mat Slots Evolved 4 | . . . . . 4 Power . | . . . . . . Propulsion 1 | . . . . . 1 Utility 3 | . . . . . 3 Weapon . | . . . . . . Parts Attached 28 | 6 2 11 . 1 8 Power 4 | 1 . 2 . . 1 Engine 2 | 1 . 1 . . . Core 2 | . . 1 . . 1 Reactor . | . . . . . . Propulsion 8 | 2 . 5 . . 1 Treads . | . . . . . . Leg . | . . . . . . Wheel 8 | 2 . 5 . . 1 Hover . | . . . . . . Flight . | . . . . . . Utility 8 | 1 2 . . 1 4 Device 3 | . . . . . 3 Storage 2 | 1 1 . . . . Processor 1 | . 1 . . . . Hackware . | . . . . . . Protection 2 | . . . . 1 1 Artifact . | . . . . . . Weapon 8 | 2 . 4 . . 2 Energy Gun 1 | 1 . . . . . Energy Cannon . | . . . . . . Ballistic Gun 2 | 1 . . . . 1 Ballistic Cannon 1 | . . 1 . . . Launcher 3 | . . 2 . . 1 Special Weapon 1 | . . 1 . . . Impact Weapon . | . . . . . . Slashing Weapon . | . . . . . . Piercing Weapon . | . . . . . . Special Melee Weapon . | . . . . . . Unidentified Prototypes 1 | . . . . . 1 Parts Lost 16 | . . 9 . . 7 Power 2 | . . 1 . . 1 Propulsion 6 | . . 4 . . 2 Utility 1 | . . . . . 1 Weapon 7 | . . 4 . . 3 Highest Loss Streak 3 | . . 3 . . 3 To Critical Strikes . | . . . . . . Average Backups 6 | . . 4 8 8 9 Power 2 | . . 1 3 4 3 Propulsion . | . . . 1 1 . Utility 2 | . . 2 3 3 3 Weapon . | . . . 1 . . Tool/Special . | . . . . . . Unused Backups 10 | . . . 1 1 8 Power 4 | . . . . . 4 Propulsion . | . . . . . . Utility 4 | . . . 1 . 3 Weapon 1 | . . . . 1 . Tool/Special 1 | . . . . . 1 Average Slot Usage (%) 90 | . 96 84 100 100 72 Engine 3 | . 14 8 . . . Core 8 | . . 4 14 14 7 Wheel 25 | . 28 22 28 28 18 Device 2 | . . . . . 16 Storage 13 | . 14 14 14 14 9 Processor 8 | . 11 14 14 . . Protection 4 | . . . . 13 7 Energy Gun 1 | . 14 1 . . . Ballistic Gun 2 | . 13 . . . 6 Ballistic Cannon 8 | . . 7 14 14 1 Launcher 8 | . . 5 14 14 5 Peak Build Rating 31 | 6 8 13 14 14 31 Average Rating 13 | 3 7 9 13 14 27 On Entrance 9 | . 6 8 13 14 14 Naked Turns . | . . . . . . Heaviest Build 32 | 12 17 22 19 24 32 Greatest Support 30 | 20 20 20 20 20 30 Greatest Overweight (x) 5 | . 1 5 . 1 2 Average Overweight (x) . | . . . . . . Largest Inventory Capacity 10 | 8 10 10 10 10 10 Average Capacity 9 | 7 9 10 10 10 10 Most Carried 10 | 3 3 10 10 10 10 Average Carried 7 | . . 4 9 9 9 Final Capacity 10 | 8 10 10 10 10 10 Final Carried 10 | . 3 9 10 10 8 Class Distribution -------------------- 66% | Scavenger-Mutant 33% | Mutant Dominant Class ---------------- Mutant | -10/Materials Scavenger-Mutant | -10/Mines Scavenger-Mutant | -10/Exiles Scavenger-Mutant | -9/Mines Mutant | -8/Materials Resources | -11 -10 -10 -10 -9 -8 ----------- Run | Yrd Mat Min Exi Min Mat Matter Collected 981 | 241 120 188 . 20 412 Remotely . | . . . . . . Salvage Created 657 | . 205 154 . . 298 Parts 37 | . 15 3 . . 19 Haulers Intercepted . | . . . . . . Recyclers Shooed 1 | . . . . . 1 Parts Field Recycled . | . . . . . . Retrieved Matter . | . . . . . . Parts Self-Destructed . | . . . . . . Prevented . | . . . . . . Kills | -11 -10 -10 -10 -9 -8 ------- Run | Yrd Mat Min Exi Min Mat Combat Hostiles Destroyed 24 | . 5 5 . . 14 Guns 11 | . 5 . . . 6 Cannons 3 | . . 3 . . . AOE 10 | . . 2 . . 8 Classes Destroyed 9 | . 5 2 . . 2 Worker 2 | . 1 . . . 1 Builder 1 | . 1 . . . . Recycler 2 | . . 2 . . . Watcher 1 | . 1 . . . . Swarmer 11 | . 3 1 . . 7 Grunt 8 | . 2 2 . . 4 Sentry 1 | . . . . . 1 Hunter 2 | . . . . . 2 Assembled 2 | . . 2 . . . Best Kill Streak 8 | . 5 2 . . 8 Combat Bots Only 8 | . 4 2 . . 8 Max Kills in Single Turn 2 | . 1 1 . . 2 Gunslinging . | . . . . . . Exploded 2 | . . 1 . . 2 Melee . | . . . . . . Uniques/NPCs Destroyed . | . . . . . . Combat | -11 -10 -10 -10 -9 -8 -------- Run | Yrd Mat Min Exi Min Mat Hostile Shots Fired 203 | . 18 69 . . 116 Missed 60 | . 3 21 . . 36 Hits 143 | . 15 48 . . 80 Projectile 143 | . 15 48 . . 80 Critical Strikes 2 | . . 1 . . 1 Damage Taken 1830 | . 147 656 . . 1027 Core 383 | . 30 215 . . 138 Absorbed by Shields . | . . . . . . Core Remaining (%) 51 | 100 . . . 2 . Volleys Fired 102 | . 17 28 . . 57 Largest 2 | . 2 2 . . 2 Hottest 100 | . 70 100 . . 61 Shots Fired 136 | . 33 33 . . 70 Gun 96 | . 33 9 . . 54 Cannon 17 | . . 17 . . . Launcher 21 | . . 5 . . 16 Special 2 | . . 2 . . . Kinetic 91 | . 17 20 . . 54 Thermal 24 | . 16 8 . . . Explosive 21 | . . 5 . . 16 Electromagnetic . | . . . . . . Robot Hit Streak 9 | . 7 5 . . 9 Robot Miss Streak 9 | . 4 9 . . 5 Penetration Max 1 | . . . . . 1 Secondary Targets . | . . . . . . Shots Hit Robots 68 | . 18 13 . . 37 Core Hits 49 | . 10 12 . . 27 Critical Kills 1 | . 1 . . . . Critical Parts Destroyed 1 | . . . . . 1 Critical Strikes 3 | . 1 1 . . 1 Destroy 2 | . 1 . . . 1 Blast 1 | . . 1 . . . Melee Attacks . | . . . . . . Impact . | . . . . . . Slashing . | . . . . . . Piercing . | . . . . . . Sneak Attacks . | . . . . . . Combat Hostiles . | . . . . . . Follow-up Attacks . | . . . . . . Damage Inflicted 2111 | . 250 349 . . 1512 Guns 838 | . 250 39 . . 549 Cannons 142 | . . 142 . . . Explosions 1107 | . . 144 . . 963 Melee . | . . . . . . Ramming . | . . . . . . Kinetic 843 | . 137 157 . . 549 Thermal 161 | . 113 48 . . . Explosive 1107 | . . 144 . . 963 Electromagnetic . | . . . . . . Impact . | . . . . . . Slashing . | . . . . . . Piercing . | . . . . . . Highest Corruption 2 | . . . . . 2 Average Corruption 2 | . . . . . 2 Corruption Purged . | . . . . . . Corruption Blocked . | . . . . . . Effects 5 | . . . . . 5 Message Errors 3 | . . . . . 3 Matter Fused 2 | . . . . . 2 Overload Shots . | . . . . . . Overflow Damage 23 | . . . . . 23 Projectiles . | . . . . . . Explosions 23 | . . . . . 23 Melee . | . . . . . . Knockbacks 1 | . . 1 . . . Impact . | . . . . . . Kinetic 1 | . . 1 . . . Secondary . | . . . . . . Self-Inflicted Damage 122 | . . 78 . . 44 Shots 5 | . . 3 . . 2 Rammed . | . . . . . . Targets Rammed . | . . . . . . Kicked . | . . . . . . Crushed . | . . . . . . Highest Temperature 93 | . 93 59 . . 14 Average Temperature 25 | . 35 18 . . 5 Received Heat Transfer 258 | . 60 99 . . 99 Siege Activations . | . . . . . . Martial Activations . | . . . . . . Shielding Activations . | . . . . . . Robots Disrupted . | . . . . . . Combat Hostiles . | . . . . . . Robots Corrupted . | . . . . . . Combat Hostiles . | . . . . . . Parts Fried . | . . . . . . Impact Corruptions . | . . . . . . Robots Melted . | . . . . . . Combat Hostiles . | . . . . . . Parts Melted 2 | . 2 . . . . Heat Transferred 457 | . 333 124 . . . Parts Sabotaged . | . . . . . . Parts Stolen . | . . . . . . Parts Stripped . | . . . . . . Power Chain Reactions . | . . . . . . Alert | -11 -10 -10 -10 -9 -8 ------- Run | Yrd Mat Min Exi Min Mat Maximum Alert Level 2 | . . . . . 2 Low Security (%) 88 | 100 100 100 . 100 32 Level 1 9 | . . . . . 52 Level 2 2 | . . . . . 15 Level 3 . | . . . . . . Level 4 . | . . . . . . Level 5 . | . . . . . . High Security . | . . . . . . Max Security . | . . . . . . Peak Influence 432 | . 112 58 . . 432 Initial 35 | . . 35 . . . Average 49 | . 24 7 . . 250 Influence Increases 925 | . 149 111 . . 665 Destroy 0b10 Robot/C 500 | . 100 60 . . 340 Destroy 0b10 Robot/NC 35 | . 15 10 . . 10 Destroy Leader 122 | . 32 10 . . 80 Allied During Kill 17 | . . . . . 17 Successful Hack 14 | . . . . . 14 Disable Machine 150 | . . . . . 150 Destroy Structure 72 | . 2 31 . . 39 Lose Combat Pursuer 15 | . . . . . 15 Influence Decreases 503 | . 57 203 . . 243 Entered New Map 57 | . . 57 . . . Time Decay 274 | . 57 104 . . 113 Lost Part 112 | . . 42 . . 70 Lost Ally 60 | . . . . . 60 Squads Dispatched 9 | . 2 . . . 7 Investigation 4 | . 1 . . . 3 Extermination . | . . . . . . Reinforcement 2 | . 1 . . . 1 Assault . | . . . . . . Garrison 3 | . . . . . 3 Intercept . | . . . . . . Searches Triggered . | . . . . . . Construction Impeded 1 | . . . . . 1 Haulers Reinforced . | . . . . . . Active Scanning Responses . | . . . . . . Cargo Convoy Interrupts . | . . . . . . Stealth | -11 -10 -10 -10 -9 -8 --------- Run | Yrd Mat Min Exi Min Mat Distress Signals 1 | . 1 . . . . Communications Jammed . | . . . . . . Distress Signals . | . . . . . . Times Spotted 42 | . 8 12 . . 22 Peak Tracking Total 7 | . 4 5 . . 7 Tactical Retreats 2 | . . 1 . . 1 Traps | -11 -10 -10 -10 -9 -8 ------- Run | Yrd Mat Min Exi Min Mat Traps Triggered 3 | . 2 . . . 1 Indirectly . | . . . . . . Trap Hack Attempts . | . . . . . . Triggered . | . . . . . . Disarmed . | . . . . . . Reprogrammed . | . . . . . . Reused . | . . . . . . Traps Extracted . | . . . . . . Installed . | . . . . . . Triggered . | . . . . . . Machines | -11 -10 -10 -10 -9 -8 ---------- Run | Yrd Mat Min Exi Min Mat Machines Disabled 10 | . . . . . 10 Max in Single Turn 2 | . . . . . 2 Machines Repaired . | . . . . . . Machines Dismantled . | . . . . . . Machines Sabotaged . | . . . . . . Overloaded Fab Kills . | . . . . . . Hacking | -11 -10 -10 -10 -9 -8 --------- Run | Yrd Mat Min Exi Min Mat Machines Accessed 7 | . 3 . 1 . 3 Terminals 6 | . 3 . . . 3 Fabricators . | . . . . . . Repair Stations . | . . . . . . Recycling Units . | . . . . . . Scanalyzers . | . . . . . . Garrison Access . | . . . . . . Total Hacks 41 | . 6 . 23 . 12 Successful 32 | . 2 . 23 . 7 Failed 9 | . 4 . . . 5 Catastrophic 2 | . 2 . . . . Database Lockouts . | . . . . . . Manual 11 | . 6 . . . 5 Terminals 18 | . 6 . . . 12 Fabricators . | . . . . . . Repair Stations . | . . . . . . Recycling Units . | . . . . . . Scanalyzers . | . . . . . . Garrison Access . | . . . . . . Terminal Hacks 28 | . 1 . 23 . 4 Record 23 | . . . 23 . . Robot Analysis 3 | . 1 . . . 2 Dispatch Records 1 | . . . . . 1 Maintenance Status 1 | . . . . . 1 Fabricator Hacks . | . . . . . . Repair Station Hacks . | . . . . . . Recycling Unit Hacks . | . . . . . . Scanalyzer . | . . . . . . Garrison Access Hacks . | . . . . . . Unauthorized Hacks 4 | . 1 . . . 3 Terminals 4 | . 1 . . . 3 Track 1 | . . . . . 1 Botnet 2 | . 1 . . . 1 Disrupt 1 | . . . . . 1 Fabricators . | . . . . . . Repair Stations . | . . . . . . Recycling Units . | . . . . . . Scanalyzers . | . . . . . . Garrison Access . | . . . . . . Data Cores Recovered . | . . . . . . Used . | . . . . . . Hacking Detections 6 | . 3 . . . 3 Full Trace Events 3 | . 1 . . . 2 Feedback Events . | . . . . . . Feedback Blocked . | . . . . . . Robot Schematics Acquired . | . . . . . . Robots Built . | . . . . . . Authchips . | . . . . . . Time . | . . . . . . Total Robot Build Rating . | . . . . . . Part Schematics Acquired . | . . . . . . Parts Built . | . . . . . . Authchips . | . . . . . . Time . | . . . . . . Total Part Build Rating . | . . . . . . Parts Repaired . | . . . . . . Time . | . . . . . . Parts Recycled . | . . . . . . Recycled Matter . | . . . . . . Retrieved Matter . | . . . . . . Retrieved Components . | . . . . . . Parts Scanalyzed . | . . . . . . Part Schematics Acquired . | . . . . . . Parts Damaged . | . . . . . . Bothacking | -11 -10 -10 -10 -9 -8 ------------ Run | Yrd Mat Min Exi Min Mat Used RIF Installer . | . . . . . . Robots Hacked . | . . . . . . Non-combat . | . . . . . . Combat . | . . . . . . Robot Hacks Applied . | . . . . . . Relay Couplers Released . | . . . . . . Fabnet Peak Effective % . | . . . . . . Robots Rewired . | . . . . . . Allies Hacked . | . . . . . . Hacks Repelled . | . . . . . . Allies | -11 -10 -10 -10 -9 -8 -------- Run | Yrd Mat Min Exi Min Mat Total Allies 3 | . . . . 3 . Largest Group 3 | . . . . 3 3 Highest-Rated Group 40 | . . . . 40 40 Highest-Rated Ally 16 | . . . . 16 16 Total Orders . | . . . . . . Ally Attacks 18 | . . . . . 18 Total Damage 219 | . . . . . 219 Kills 4 | . . . . . 4 Allies Corrupted . | . . . . . . Allies Melted . | . . . . . . Intel | -11 -10 -10 -10 -9 -8 ------- Run | Yrd Mat Min Exi Min Mat Active Infowar (turns) 1241 | . 175 653 404 8 1 Optics 1240 | . 175 653 404 8 . ECM 1 | . . . . . 1 Robot Analysis Total 3 | . 1 . . . 2 Derelict Logs Recovered 2 | . . 1 . 1 . Drone Launches . | . . . . . . Drone Recoveries . | . . . . . . Exploration | -11 -10 -10 -10 -9 -8 ------------- Run | Yrd Mat Min Exi Min Mat Turns Passed 2135 | 35 208 653 404 536 299 Spaces Moved 1794 | 31 160 582 458 403 160 Core 18 | 6 . 12 . . . Treads . | . . . . . . Legs . | . . . . . . Wheels 1776 | 25 160 570 458 403 160 Hover . | . . . . . . Flight . | . . . . . . Fastest Speed 50 | 50 80 80 80 80 80 Average Speed 87 | 74 80 88 80 94 94 Slowest Speed 300 | 80 95 300 80 95 110 Overloaded Moves . | . . . . . . Propulsion Burnouts . | . . . . . . Robots Hopped . | . . . . . . Potential Cave-ins . | . . . . . . Cave-ins Triggered . | . . . . . . Exploration Rate (%) 53 | 4 36 97 86 72 24 Regions Visited 5 Branch Regions 3 Pre-discovered Areas 2 | . . . 1 1 . Known Exits Taken . | . . . . . . Unknown Exits Taken 5 | 1 1 1 1 1 . Scrap Searched 3 | . . 1 . 2 . Spaces Dug . | . . . . . . Terrain Destroyed 79 | . . 41 . . 38 Melee . | . . . . . . Projectile . | . . . . . . AOE 79 | . . 41 . . 38 Terrain Rammed . | . . . . . . Walls Destroyed . | . . . . . . Machines Disabled . | . . . . . . Actions | -11 -10 -10 -10 -9 -8 --------- Run | Yrd Mat Min Exi Min Mat Total 2220 | 42 206 680 496 557 239 Wait 198 | . 16 44 . 135 3 Move 1789 | 30 159 581 457 402 160 Hop . | . . . . . . Pick Up 41 | 6 8 15 3 2 7 Fast Attach . | . . . . . . Attach 25 | 6 4 9 . . 6 Detach 1 | . . . . . 1 Swap 6 | . 1 2 . 1 2 Drop 8 | . 1 1 2 1 3 Fire 102 | . 17 28 . . 57 Melee . | . . . . . . Ram . | . . . . . . Kick . | . . . . . . Crush . | . . . . . . Escape Stasis . | . . . . . . Rewire 50 | . . . 34 16 . Trap . | . . . . . . Miscellaneous . | . . . . . . Route ------- -11/Scrapyard -10/Materials -10/Mines (discovered 4 exits: [*Mat x2] / *Exi / [*Sub]) -10/Exiles (discovered 2 exits: [*Min x2]) -9/Mines -8/Materials History --------- Turn | Location | Event 2 | -11/Scrapyard | Met Revision 17 24 | -11/Scrapyard | Discovered new exit (range 14) 36 | -11/Scrapyard | Entered Materials 191 | -10/Materials | Discovered new exit (range 16) 244 | -10/Materials | Entered Mines 246 | -10/Mines | Assembled infested the area 251 | -10/Mines | Assisted by a Guerilla fighting off Assembled 305 | -10/Mines | Build established: Mutant 313 | -10/Mines | Lost 3 parts (2n1w) 315 | -10/Mines | Core integrity fell below 50% 352 | -10/Mines | Core integrity fell below 20% 395 | -10/Mines | Found a damaged Exp. Sensor Array with a note attached 397 | -10/Mines | Found Prototype Device 453 | -10/Mines | Received a Rocket Launcher from a helpful Derelict 553 | -10/Mines | Found DCF Scrap (12 items) 619 | -10/Mines | Discovered new exit (range 10) 716 | -10/Mines | Found a Scrap Suit stashed away for nefarious purposes 718 | -10/Mines | Found Scrap Suit 739 | -10/Mines | Discovered new exit (range 7) 759 | -10/Mines | Learned Materials terminal intel 836 | -10/Mines | Build established: Scavenger-Mutant 890 | -10/Mines | Discovered new exit (range 6) 894 | -10/Mines | Deemed a non-threat by the Exiles lab entrance 894 | -10/Mines | Discovered new exit (range 5) 897 | -10/Mines | Entered Exiles 909 | -10/Exiles | Discovered new exit (range 17) 931 | -10/Exiles | Met 8R-AWN 943 | -10/Exiles | Met EX-HEX 970 | -10/Exiles | Met EX-DEC 992 | -10/Exiles | Visited The Gauntlet 1146 | -10/Exiles | Learned location of Zion (-6) 1190 | -10/Exiles | Discovered new exit (range 14) 1237 | -10/Exiles | Met EX-BIN 1301 | -10/Exiles | Entered Mines 1451 | -9/Mines | Met a Derelict bent on vengeance 1514 | -9/Mines | Learned Materials security intel 1639 | -9/Mines | Learned location of Storage (-8) 1752 | -9/Mines | Assisted by bots powering up and referring to "LRC-V3" 1777 | -9/Mines | Discovered new exit (range 10) 1837 | -9/Mines | Entered Materials 1837 | -8/Materials | Accompanied by 3 allies 1837 | -8/Materials | Evolved 4 slots: Propulsion x1, Utility x3 1839 | -8/Materials | Loaded intel: 12 terminal locations 1843 | -8/Materials | Identified Exp. Sensor Array 1912 | -8/Materials | Garrison activated, responded to threat 1954 | -8/Materials | Lost 3 allies 1982 | -8/Materials | Destroyed 8 combat bots 2130 | -8/Materials | Lost 3 parts (1u2w) 2136 | -8/Materials | Self-destructed Last Messages --------------- U-05 Engineer lays Concrete. Acquired 16 matter. U-05 Engineer lays Concrete. Acquired 28 matter. U-05 Engineer lays Concrete. System corrupted: Matter fused (-10). U-05 Engineer lays Concrete. Acquired 25 matter. U-05 Engineer lays Concrete. U-05 Engineer builds a Wall. U-05 Engineer lays Concrete. U-05 Engineer builds a Wall. U-05 Engineer lays Concrete. U-05 Engineer builds a Wall. U-05 Engineer lays Concrete. Triggered Alarm Trap. An alarm sounds. ALERT: Alarm triggered, dispatching investigation squad. U-05 Engineer builds a Wall. Map ----- +----------------------------------------------------+ | ??????????????????????????????? | | ??????????????????????????????? | | ??????????????????????????????? | | ??????????????????????????????? | | ??????????????????????????????? | | ??????????????????????????????? | | ??????????????????????????????? | | ??????????????????????????????? | | ??????????????????????????????? | | ??????????????????????????????? | | ???????????????????????? ???? | | ???????????????????????? g???? | | ???????????????????????? ???? | | ???????????????????????# g #??? | | ???????????????????????# #??? | | ???????????????????????# #??? | | ???????????????????????# #??? | | ???????????????????????+ #??? | | ???????????????????????# #??? | | ???????????????????????# #??? | | ???????????????????????# #??? | | ???????????????????????# #??? | | ???????????????????????# #??? | | ???????????????????????# #??? | | ???????????????????????# #??? | | ???????????????????????# @ #??? | | ???????????????????????# #??? | | ???????????????????????# #??? | | ???????????????????????# #??? | | ???????????????????##### #??? | | ???????????????????#"""# #??? | | ????????????????####" "# #??? | | ????????????##### * #??? | | ???????###### # #??? | | ???????#! "" #??? | | ???????# # "" #??? | | ???????# "T #??? | | ???????# # "" #??? | | ???????# "" #??? | | ???????# #??? | | ???????# #??? | | ???????# """ " # ### #??? | | ???????# """ # # #??? | | ???????######### # ??? | | ????????????????# #! !#?? | | ????????????????# ##!!!!##?? | | ????????????????# #?#####??? | | ????????????????# #????????? | | ???############## #????????? | | ?? #????????? | +----------------------------------------------------+ Best States ------------- Heat Dissipation 31 Energy Generation 14 Energy Capacity 160 Matter Stores 300 Matter Capacity 300 Sight Range 18 Terrain Scan Density 10 Armor Coverage 150 Evasion (%) 44 Item Schematics ----------------- None Robot Schematics ------------------ None Fabricated ------------ Nothing Repaired ---------- Nothing Alien Tech Used ----------------- None Achievements -------------- root@ Challenges ------------ None Game ------ Seed WeightEncryptedDesublimator Manual? 0 Play Time 00:26:22 Cumulative 25.8 hours Start 2025.09.18 @ 17:20:41 End 2025.09.18 @ 21:48:11 Sessions 2 Manual Loads 0 Difficulty Rogue Special Mode None Game No. 42 Rogue 21 Adventurer 21 Explorer 0 Win Type - Total 1 Types 0/0/0/0/0/0/0/1/0/0 Lore% 48 Gallery% 32 Achievement% 38 Wizard Run 0 Options --------- Layout 1 ASCII 0 Keyboard 0 Movement Mouse Keybinds 0 Fullscreen 2 Font 24/Smallcaps Map View 50x35 Zoom Use 0% Tactical HUD 0 Map Filters NONE Filters NONE Steam 1 RUN: 430251a2-24fd-4ba0-a950-3f492c2dabc7